fUSD/lending_fUSD_20250609
["ID","MTS","AMOUNT","RATE_DAILY","PERIOD"]
[365124860,1749479440470,-150.0,0.00019925,2]
[365124862,1749479440480,-150.0,0.00019925,2]
[365124864,1749479440490,-150.0,0.00019927,2]
[365124865,1749479440500,-150.0,0.00019928,2]
[365124867,1749479440510,-150.0,0.00019928,2]
[365124869,1749479440519,-150.0,0.00019929,2]
[365124871,1749479440529,-150.0,0.00019929,2]
[365124873,1749479440538,-150.0,0.0001993,2]
[365124875,1749479440549,-150.0,0.00019933,2]
[365124877,1749479440559,-150.0,0.00019934,2]
[365124879,1749479440569,-150.0,0.00019938,2]
[365124881,1749479440579,-150.0,0.00019939,2]
[365124883,1749479440589,-150.0,0.0001994,2]
[365124885,1749479440600,-150.0,0.00019948,2]
[365124887,1749479440609,-4656.59513255,0.00019949,2]
[365124889,1749479440619,-500.1732223,0.0001995,2]
[365124891,1749479440629,-150.0,0.00019954,2]
[365124893,1749479440639,-1218.531,0.00019956,2]
[365124895,1749479440648,-150.0,0.00019957,2]
[365124897,1749479440658,-150.0,0.00019958,2]
[365124899,1749479440669,-150.0,0.0001996,2]
[365124901,1749479440679,-150.0,0.00019965,2]
[365124903,1749479440688,-150.0,0.00019965,2]
[365124905,1749479440699,-150.0,0.00019967,2]
[365124907,1749479440708,-514.0,0.0001997,2]
[365124909,1749479440719,-500.0,0.00019973,2]
[365124911,1749479440729,-500.0,0.00019973,2]
[365124913,1749479440738,-500.0,0.00019973,2]
[365124915,1749479440748,-500.0,0.00019973,2]
[365124917,1749479440757,-500.0,0.00019973,2]
[365124919,1749479440767,-648.00540886,0.00019973,2]
[365124921,1749479440777,-510.12723358,0.00019973,2]
[365124923,1749479440787,-500.0,0.00019973,2]
[365124925,1749479440796,-500.0,0.00019973,2]
[365124927,1749479440806,-500.0,0.00019973,2]
[365124929,1749479440815,-500.0,0.00019973,2]
[365124931,1749479440824,-150.0,0.00019973,2]
[365124933,1749479440834,-150.0,0.00019974,2]
[365124935,1749479440843,-150.0,0.00019976,2]
[365124936,1749479440853,-75981.68037468,0.0001998,2]
[365124938,1749479440863,-288.55200591,0.00019981,2]
[365124963,1749479441106,-441.88566868,0.00019981,2]
[365124966,1749479441130,-150.0,0.00019982,2]
[365124968,1749479441140,-150.0,0.00019985,2]
[365124971,1749479441150,-150.0,0.00019985,2]
[365124972,1749479441159,-2976.79392012,0.00019985,2]
[365124975,1749479441170,-150.0,0.00019986,2]
[365124977,1749479441180,-10936.72539161,0.0001999,2]
[365124979,1749479441190,-18406.57804182,0.0001999,2]
[365124981,1749479441200,-150.0,0.00019992,2]
[365124982,1749479441210,-150.0,0.00019992,2]
[365124984,1749479441221,-150.0,0.00019992,2]
[365124987,1749479441231,-150.0,0.00019992,2]
[365124988,1749479441241,-500.0,0.00019992,2]
[365124990,1749479441250,-150.0,0.00019992,2]
[365124993,1749479441260,-150.0,0.00019992,2]
[365124995,1749479441270,-500.0,0.00019992,2]
[365124997,1749479441280,-150.0,0.00019993,2]
[365124999,1749479441290,-172.5461113,0.00019993,2]
[365125001,1749479441299,-150.0,0.00019995,2]
[365125002,1749479441309,-150.0,0.00019996,2]
[365125005,1749479441319,-150.0,0.00019996,2]
[365125006,1749479441328,-368945.8286448,0.00019996,2]
[365125008,1749479441338,-30787.6476384,0.00019996,2]
[365125010,1749479441347,-18625.5165612,0.00019996,2]
[365125012,1749479441356,-11954.7711906,0.00019996,2]
[365125014,1749479441366,-150.0,0.00019998,2]
[365125016,1749479441375,-669.40882155,0.00019999,2]
[365125018,1749479441385,-666.0,0.00019999,2]
[365125020,1749479441394,-300.0,0.00019999,2]
[365125022,1749479441404,-300.0,0.00019999,2]
[365125023,1749479441419,-2000.0,0.00019999,2]
[365125024,1749479441429,-740.71727886,0.00019999,2]
[365125025,1749479441439,-565.58,0.00019999,2]
[365125026,1749479441449,-150.0,0.00019999,2]
[365125027,1749479441459,-632.01912962,0.0002,2]
[365125028,1749479441468,-10459.42415489,0.0002,3]
[365125029,1749479441477,-3243945.27447925,0.0002,3]
[365125030,1749479441489,-2260.52134697,0.0002,2]
[365125031,1749479441500,-1674485.48874474,0.0002,2]
[365125117,1749479442383,-500.0,0.00019899,2]
[365125119,1749479442392,-500.0,0.00019899,2]
[365125121,1749479442402,-289.86516683,0.00019899,2]
[365125123,1749479442415,-500.0,0.00019899,2]
[365125125,1749479442424,-500.0,0.00019899,2]
[365125127,1749479442433,-500.0,0.00019899,2]
[365125129,1749479442442,-262.97389927,0.00019899,2]
[365125131,1749479442451,-500.0,0.00019899,2]
[365125133,1749479442461,-500.0,0.00019899,2]
[365125135,1749479442471,-500.0,0.00019899,2]
[365125137,1749479442480,-500.0,0.00019899,2]
[365125139,1749479442490,-558.93773328,0.00019899,2]
[365125141,1749479442500,-4206.47372931,0.0002,2]
[365125143,1749479442513,-393.96818948,0.0002,2]
[365125145,1749479442524,-3294.35088936,0.0002,2]
[365125150,1749479442561,-500.0,0.00019899,2]
[365125152,1749479442571,-5626288.20486528,0.0002,2]
[365125269,1749479443477,-500.0,0.00019899,2]
[365125271,1749479443487,-500.0,0.00019899,2]
[365125273,1749479443497,-500.0,0.00019899,2]
[365125274,1749479443507,-500.0,0.00019899,2]
[365125277,1749479443518,-500.0,0.00019899,2]
[365125278,1749479443527,-500.0,0.00019899,2]
[365125280,1749479443536,-500.0,0.00019899,2]
[365125282,1749479443545,-1815535.4163118,0.0002,2]
[365125284,1749479443556,-605.7395795,0.0002,2]
[365125326,1749479446323,-24286.67459143,0.0002,2]
[365125327,1749479446354,-862.75500528,0.0002,2]
[365125328,1749479446365,-1599.99999999,0.0002,2]
[365125337,1749479469495,150.0,0.000246,120]
[365125341,1749479873051,862.75500528,0.00019205,30]
[365125342,1749479942979,484.5,0.00024658,120]
[365125343,1749479956582,2362.0,0.00024658,120]
[365125345,1749479980023,198.0,0.000171,2]
[365125346,1749479984057,198.0,0.000171,2]
[365125349,1749480345981,1217.81,0.00016687,2]
[365125350,1749480491863,202.0,0.0001688,2]
[365125351,1749480550486,246.04005919,0.00013699,2]
[365125352,1749480550511,256.95994081,0.00013699,2]
[365125371,1749480632417,-250.0,0.00018018,2]
[365125372,1749480632428,-1000.0,0.00018155,2]
[365125373,1749480632437,-202.0,0.0001842,4]
[365125374,1749480632447,-379.03,0.00018555,2]
[365125376,1749480632457,-1200.0,0.00018573,2]
[365125379,1749480632467,-6642.98954938,0.00018574,2]
[365125381,1749480632479,-13641.35045062,0.00018574,2]
[365125382,1749480632488,-843.45,0.00018619,2]
[365125383,1749480632499,-188.88,0.00018622,2]
[365125384,1749480632508,-1000.0,0.00018633,2]
[365125385,1749480632518,-250.0,0.00018645,2]
[365125386,1749480632529,-163.13,0.0001868,2]
[365125387,1749480632539,-305.05,0.00018737,2]
[365125388,1749480632548,-150.0,0.00018843,7]
[365125389,1749480632557,-1000.0,0.00018843,2]
[365125390,1749480632567,-1174.67220467,0.0001888,2]
[365125392,1749480632576,-1000.0,0.000189,2]
[365125394,1749480632585,-200.0,0.000189,6]
[365125396,1749480632593,-211.85390425,0.000189,2]
[365125398,1749480632603,-1217.81,0.00018951,2]
[365125400,1749480632613,-211.85390423,0.00018977,2]
[365125402,1749480632622,-207.4,0.00018999,2]
[365125404,1749480632631,-500.0,0.00019,6]
[365125406,1749480632640,-250.0,0.00019,2]
[365125408,1749480632649,-211.85390423,0.00019054,2]
[365125410,1749480632658,-300.0,0.00019059,2]
[365125412,1749480632668,-308.17806169,0.00019084,2]
[365125414,1749480632677,-166.61,0.00019087,2]
[365125416,1749480632686,-800.0,0.000191,6]
[365125418,1749480632695,-211.85390423,0.00019131,2]
[365125419,1749480632704,-151.0,0.00019178,2]
[365125421,1749480632713,-163.45,0.00019178,2]
[365125423,1749480632723,-1100.0,0.000192,7]
[365125424,1749480632732,-452.68499472,0.00019205,30]
[365125426,1749480632741,-211.85390423,0.00019208,2]
[365125428,1749480632750,-211.85390423,0.00019285,2]
[365125429,1749480632759,-1400.0,0.000193,7]
[365125431,1749480632768,-110.36958602,0.00019328,2]
[365125499,1749480638247,-889.63041398,0.00019328,2]
[365125500,1749480638257,-151.0,0.00019328,2]
[365125501,1749480638266,-151.0,0.00019328,2]
[365125502,1749480638276,-500.0,0.00019328,2]
[365125503,1749480638287,-500.0,0.00019328,2]
[365125504,1749480638297,-500.0,0.00019328,2]
[365125505,1749480638307,-668.65185757,0.00019328,2]
[365125506,1749480638317,-500.0,0.00019328,2]
[365125507,1749480638327,-500.0,0.00019328,2]
[365125508,1749480638336,-500.0,0.00019328,2]
[365125509,1749480638346,-500.0,0.00019328,2]
[365125510,1749480638356,-37.10972845,0.00019328,2]
[365125511,1749480638474,-462.89027155,0.00019328,2]
[365125512,1749480638484,-500.0,0.00019328,2]
[365125513,1749480638496,-305.85972845,0.00019328,2]
[365125515,1749480638511,-57.4905011,0.00019328,2]
[365125517,1749480638521,-151.72516784,0.00019328,2]
[365125519,1749480638531,-154.31242224,0.00019328,2]
[365125521,1749480638541,-500.0,0.00019328,2]
[365125523,1749480638551,-500.0,0.00019328,2]
[365125525,1749480638561,-500.0,0.00019328,2]
[365125527,1749480638570,-500.0,0.00019328,2]
[365125529,1749480638579,-500.0,0.00019328,2]
[365125531,1749480638589,-500.0,0.00019328,2]
[365125533,1749480638598,-500.0,0.00019328,2]
[365125535,1749480638607,-500.0,0.00019328,2]
[365125537,1749480638616,-500.0,0.00019328,2]
[365125539,1749480638626,-621.74338249,0.00019328,2]
[365125541,1749480638635,-150.99,0.00019339,2]
[365125543,1749480638644,-999.99,0.00019339,2]
[365125545,1749480638653,-272.23,0.00019339,2]
[365125547,1749480638662,-299.99,0.00019339,7]
[365125549,1749480638671,-9999.99,0.00019339,2]
[365125551,1749480638681,-9999.99,0.00019339,2]
[365125553,1749480638690,-211.85390423,0.00019362,2]
[365125555,1749480638700,-200.0,0.000194,7]
[365125557,1749480638709,-211.85390423,0.00019438,2]
[365125559,1749480638718,-200.0,0.000195,7]
[365125561,1749480638728,-211.85390423,0.00019515,2]
[365125563,1749480638737,-211.85390423,0.00019592,2]
[365125565,1749480638746,-407.471132,0.00019599,2]
[365125567,1749480638755,-200.0,0.000196,7]
[365125569,1749480638765,-250.0,0.00019668,2]
[365125571,1749480638775,-211.85390423,0.00019669,2]
[365125573,1749480638788,-200.0,0.000197,7]
[365125575,1749480638797,-156.587,0.00019726,2]
[365125577,1749480638807,-211.85390423,0.00019746,2]
[365125579,1749480638816,-150.0,0.00019761,2]
[365125581,1749480638826,-150.0,0.00019784,2]
[365125583,1749480638835,-250.0,0.00019785,2]
[365125585,1749480638845,-198.0,0.000198,3]
[365125587,1749480638855,-198.0,0.000198,3]
[365125589,1749480638864,-198.0,0.000198,4]
[365125590,1749480638874,-198.0,0.000198,4]
[365125593,1749480638883,-200.0,0.000198,3]
[365125594,1749480638893,-201.61,0.000198,3]
[365125596,1749480638902,-934.0,0.000198,7]
[365125599,1749480638911,-250.0,0.0001982,2]
[365125601,1749480638920,-211.85390423,0.00019823,2]
[365125602,1749480638929,-200.0,0.0001984,2]
[365125604,1749480638939,-166.61,0.00019875,2]
[365125606,1749480638948,-151.0,0.00019876,2]
[365125608,1749480638957,-172.5461113,0.00019881,2]
[365125611,1749480638967,-150.0,0.00019892,2]
[365125613,1749480638975,-344.27916465,0.00019893,2]
[365125614,1749480638984,-500.0,0.00019893,2]
[365125616,1749480638993,-411.68,0.00019893,2]
[365125618,1749480639003,-500.0,0.00019893,2]
[365125620,1749480639012,-500.0,0.00019893,2]
[365125622,1749480639021,-500.0,0.00019893,2]
[365125624,1749480639033,-317.06051608,0.00019893,2]
[365125626,1749480639043,-20180.5998,0.00019896,2]
[365125628,1749480639052,-1329.27705373,0.00019896,2]
[365125630,1749480639061,-574.7391127,0.00019896,2]
[365125632,1749480639070,-168.41577707,0.00019896,2]
[365125634,1749480639079,-1329.27705368,0.00019896,2]
[365125636,1749480639089,-1329.27705368,0.00019897,2]
[365125638,1749480639098,-1329.27705368,0.00019897,2]
[365125640,1749480639108,-1329.27705368,0.00019898,2]
[365125642,1749480639117,-1329.27705368,0.00019898,2]
[365125644,1749480639126,-1329.27705368,0.00019899,2]
[365125646,1749480639136,-1000.0,0.00019899,2]
[365125648,1749480639145,-8223.83395767,0.00019899,2]
[365125650,1749480639154,-1000.0,0.00019899,2]
[365125652,1749480639164,-1329.27705368,0.00019899,2]
[365125654,1749480639173,-1329.27705368,0.000199,2]
[365125656,1749480639182,-160.30486295,0.000199,2]
[365125658,1749480639191,-386.75859536,0.000199,2]
[365125660,1749480639201,-1329.27705368,0.000199,2]
[365125662,1749480639211,-211.85390423,0.000199,2]
[365125664,1749480639220,-178.93188528,0.000199,2]
[365125666,1749480639230,-5031.3676572,0.000199,2]
[365125668,1749480639240,-162.95459082,0.000199,2]
[365125670,1749480639249,-1167.695,0.00019925,2]
[365125672,1749480639259,-150.0,0.00019956,2]
[365125674,1749480639268,-150.0,0.00019958,2]
[365125676,1749480639278,-202.0,0.0001996,6]
[365125678,1749480639289,-500.0,0.00019973,2]
[365125680,1749480639299,-500.0,0.00019973,2]
[365125682,1749480639308,-500.0,0.00019973,2]
[365125684,1749480639318,-500.0,0.00019973,2]
[365125686,1749480639328,-500.0,0.00019973,2]
[365125688,1749480639338,-500.0,0.00019973,2]
[365125690,1749480639348,-500.0,0.00019973,2]
[365125692,1749480639358,-500.0,0.00019973,2]
[365125694,1749480639367,-500.0,0.00019973,2]
[365125696,1749480639377,-1791.0,0.0001999,2]
[365125698,1749480639387,-10936.72539161,0.0001999,2]
[365125700,1749480639397,-1000.0,0.0001999,2]
[365125702,1749480639406,-1000.0,0.0001999,2]
[365125704,1749480639416,-150.0,0.00019992,2]
[365125706,1749480639426,-150.0,0.00019992,2]
[365125708,1749480639435,-150.0,0.00019992,2]
[365125710,1749480639446,-150.0,0.00019992,2]
[365125712,1749480639456,-150.0,0.00019992,2]
[365125714,1749480639465,-150.0,0.00019992,2]
[365125716,1749480639474,-500.0,0.00019992,2]
[365125718,1749480639484,-500.0,0.00019992,2]
[365125720,1749480639494,-150.0,0.00019992,2]
[365125722,1749480639504,-500.0,0.00019992,2]
[365125724,1749480639513,-500.0,0.00019995,2]
[365125726,1749480639523,-500.0,0.00019995,2]
[365125728,1749480639533,-202.90561679,0.00019995,2]
[365125730,1749480639542,-500.0,0.00019995,2]
[365125732,1749480639551,-500.0,0.00019995,2]
[365125734,1749480639559,-500.0,0.00019995,2]
[365125736,1749480639569,-500.0,0.00019995,2]
[365125738,1749480639578,-341.2564133,0.00019995,2]
[365125740,1749480639587,-500.0,0.00019995,2]
[365125742,1749480639597,-500.0,0.00019995,2]
[365125743,1749480639606,-184.08172949,0.00019995,2]
[365125745,1749480639615,-500.0,0.00019995,2]
[365125747,1749480639625,-500.0,0.00019995,2]
[365125749,1749480639634,-500.0,0.00019995,2]
[365125751,1749480639643,-500.0,0.00019995,2]
[365125753,1749480639653,-391371.0117586,0.00019996,2]
[365125755,1749480639664,-2767.1693826,0.00019996,2]
[365125757,1749480639674,-31282.7653431,0.00019996,2]
[365125759,1749480639683,-10731.6847562,0.00019996,2]
[365125761,1749480639693,-666.0,0.00019999,2]
[365125764,1749480639703,-300.0,0.00019999,2]
[365125766,1749480639713,-300.0,0.00019999,2]
[365125768,1749480639722,-2000.0,0.00019999,2]
[365125770,1749480639731,-565.58,0.00019999,2]
[365125771,1749480639741,-155.0,0.00019999,2]
[365125773,1749480639750,-1000.0,0.00019999,2]
[365125775,1749480639759,-150.0,0.00019999,2]
[365125777,1749480639768,-740.71727886,0.00019999,2]
[365125779,1749480639779,-162861.7342476,0.0002,2]
[365125781,1749480639792,-833.29909032,0.0002,3]
[365125783,1749480639802,-11000.13081741,0.0002,3]
[365125785,1749480639811,-3436460.67895627,0.0002,3]
[365125787,1749480639822,-1228573.80834602,0.0002,2]
[365125846,1749480640375,-372.32126982,0.0002,2]
[365125861,1749480640514,-604.40918996,0.0002,2]
[365125863,1749480640526,-1413.51110107,0.0002,2]
[365125867,1749480640560,-746.67106805,0.0002,2]
[365125885,1749480640729,-2740492.26469255,0.0002,2]
[365125887,1749480640738,-453405.83258474,0.0002,2]
[365125890,1749480640748,-11916.2754748,0.0002,2]
[365125893,1749480640757,-4068.72222636,0.0002,2]
[365125895,1749480640767,-23865.42,0.0002,2]
[365125897,1749480640778,-200.0,0.0002,2]
[365125899,1749480640790,-1500.0,0.0002,2]
[365125901,1749480640799,-1500.0,0.0002,2]
[365125903,1749480640808,-1500.0,0.0002,2]
[365125905,1749480640818,-1500.0,0.0002,2]
[365125907,1749480640827,-1500.0,0.0002,2]
[365125909,1749480640836,-1500.0,0.0002,2]
[365125911,1749480640845,-1500.0,0.0002,2]
[365125913,1749480640855,-1500.0,0.0002,2]
[365125915,1749480640866,-1500.0,0.0002,2]
[365125917,1749480640875,-828.48,0.0002,2]
[365125919,1749480640883,-1500.0,0.0002,2]
[365125920,1749480640893,-210.86,0.0002,2]
[365125922,1749480640902,-2376300.34988683,0.0002,2]
[365126153,1749480643295,-535.16031567,0.000199,2]
[365126168,1749480643437,-464.83968433,0.000199,2]
[365126170,1749480643447,-21223.00186678,0.0002,2]
[365126172,1749480643458,-1471.71769768,0.0002,2]
[365126175,1749480643483,-481.95085199,0.0002,2]
[365126186,1749480643589,-374.48324428,0.0002,2]
[365126188,1749480643601,-651.75962981,0.0002,2]
[365126190,1749480643613,-292.21377625,0.0002,2]
[365126193,1749480643624,-599.59450116,0.0002,2]
[365126195,1749480643636,-824.62868941,0.0002,2]
[365126197,1749480643647,-386030.80895404,0.0002,2]
[365126235,1749480646193,-2923.07092297,0.0002,2]
[365126236,1749480646322,-2593.28466,0.0002,2]
[365126237,1749480646334,-256.89270259,0.0002,2]
[365126238,1749480646452,-372.94341384,0.0002,2]
[365126239,1749480646464,-40334.21669672,0.0002,2]
[365126241,1749480646617,-55003.36860224,0.0002,2]
[365126245,1749480731906,201.0,0.0001688,2]
[365126246,1749480841251,155.39387125,0.00016796,20]
[365126247,1749480888800,-155.01096659,0.00024658,120]
[365126248,1749480888822,-207.98903341,0.00024658,120]
[365126251,1749481259784,1405.66741938,0.0002465,120]
[365126252,1749481306657,254.67514733,0.000246,120]
[365126253,1749481307299,150.0,0.000246,120]
[365126254,1749481319234,521.0,0.0002465,120]
[365126255,1749481323460,1157.55,0.00024658,120]
[365126256,1749481328432,1405.66742038,0.00024658,120]
[365126257,1749481328558,463.02439271,0.00024658,120]
[365126258,1749481330037,1149.77658989,0.00024658,120]
[365126259,1749481372909,150.0,0.00024658,120]
[365126260,1749481379362,739.0,0.0002465,120]
[365126261,1749481383506,1198.24,0.00016676,2]
[365126262,1749481403911,150.0,0.00024658,120]
[365126263,1749481416794,150.0,0.00017052,10]
[365126264,1749481439350,472.0,0.0002465,120]
[365126265,1749481503421,1180.28,0.00024658,120]
[365126266,1749481508068,1034.73516191,0.00024657,120]
[365126267,1749481544507,1826.66462832,0.00024657,120]
[365126268,1749481576933,494.12,0.00013699,2]
[365126270,1749481727815,-200.03976,0.000184,2]
[365126271,1749481727838,-7.96024,0.00018482,2]
[365126272,1749481753945,2000.0,0.00018489,120]
[365126275,1749481832443,-205.00355148,0.00018477,2]
[365126276,1749481832454,-202.0,0.000185,2]
[365126277,1749481832464,-763.92607449,0.00018522,2]
[365126278,1749481832476,-161.31392551,0.00018522,2]
[365126279,1749481832486,-288.68607449,0.00018537,2]
[365126280,1749481832568,-612.91392551,0.00018537,2]
[365126281,1749481832578,-362.93,0.00018537,2]
[365126282,1749481832588,-2583.45,0.00018577,2]
[365126283,1749481832600,-250.0,0.00018582,2]
[365126284,1749481832610,-163.68,0.00018604,2]
[365126285,1749481832620,-1200.0,0.00018624,2]
[365126286,1749481832630,-3552.13,0.00018625,2]
[365126287,1749481832640,-238.26818499,0.000189,2]
[365126288,1749481832650,-238.26818472,0.00018934,2]
[365126289,1749481832660,-300.0,0.00018938,2]
[365126290,1749481832670,-1198.24,0.0001894,2]
[365126291,1749481832679,-414.77063127,0.00018965,2]
[365126292,1749481832711,-5135.38936873,0.00018965,2]
[365126293,1749481832721,-238.26818472,0.00018969,2]
[365126294,1749481832730,-1000.0,0.00018972,2]
[365126295,1749481832740,-150.0,0.0001899,7]
[365126296,1749481832749,-150.99,0.0001899,2]
[365126297,1749481832758,-2091.03,0.0001899,2]
[365126298,1749481832767,-9272.73,0.0001899,2]
[365126299,1749481832777,-2815.66395473,0.0001899,2]
[365126835,1749481838504,-7184.32604527,0.0001899,2]
[365126837,1749481838514,-150.99,0.0001899,2]
[365126840,1749481838525,-500.0,0.00019,7]
[365126841,1749481838534,-500.0,0.00019,7]
[365126844,1749481838545,-500.0,0.00019,7]
[365126846,1749481838555,-500.0,0.00019,7]
[365126847,1749481838565,-566.5,0.00019,7]
[365126850,1749481838574,-238.26818472,0.00019003,2]
[365126852,1749481838585,-2554.91576996,0.00019033,2]
[365126864,1749481838698,-333.42399999,0.00019033,2]
[365126881,1749481838853,-3289.44023005,0.00019033,2]
[365126883,1749481838863,-238.26818472,0.00019038,2]
[365126885,1749481838873,-165.76,0.0001907,2]
[365126887,1749481838883,-238.26818472,0.00019072,2]
[365126889,1749481838894,-238.26818472,0.00019107,2]
[365126891,1749481838904,-238.26818472,0.00019141,2]
[365126893,1749481838914,-238.26818472,0.00019176,2]
[365126895,1749481838923,-466.72388939,0.00019178,2]
[365126897,1749481838933,-850.37,0.00019178,2]
[365126899,1749481838943,-2767.64,0.00019178,2]
[365126901,1749481838953,-490.0,0.00019178,2]
[365126903,1749481838963,-1877.32,0.00019178,2]
[365126905,1749481838972,-490.0,0.00019178,2]
[365126907,1749481838982,-158.54512357,0.00019178,2]
[365126909,1749481838992,-490.0,0.00019178,2]
[365126911,1749481839002,-490.0,0.00019178,2]
[365126913,1749481839012,-209.89999999,0.00019178,2]
[365126915,1749481839023,-490.0,0.00019178,2]
[365126917,1749481839033,-490.0,0.00019178,2]
[365126919,1749481839043,-402.25288363,0.00019178,2]
[365126921,1749481839054,-468.83260305,0.00019178,2]
[365126923,1749481839065,-490.0,0.00019178,2]
[365126925,1749481839076,-490.0,0.00019178,2]
[365126927,1749481839087,-1168.94,0.00019178,2]
[365126929,1749481839097,-490.0,0.00019178,2]
[365126931,1749481839107,-490.0,0.00019178,2]
[365126933,1749481839118,-490.0,0.00019178,2]
[365126936,1749481839128,-937.76,0.00019178,2]
[365126938,1749481839138,-2873.5,0.00019178,2]
[365126940,1749481839148,-460.0,0.00019178,2]
[365126941,1749481839157,-300.0,0.00019178,2]
[365126943,1749481839167,-490.0,0.00019178,2]
[365126945,1749481839177,-1477.15,0.00019178,2]
[365126948,1749481839188,-465.5828233,0.00019178,2]
[365126950,1749481839198,-490.0,0.00019178,2]
[365126951,1749481839208,-490.0,0.00019178,2]
[365126953,1749481839218,-624.80539299,0.00019178,2]
[365126956,1749481839228,-761.43,0.00019178,2]
[365126958,1749481839242,-423.41787596,0.00019178,2]
[365126959,1749481839257,-490.0,0.00019178,2]
[365126961,1749481839267,-490.0,0.00019178,2]
[365126963,1749481839277,-490.0,0.00019178,2]
[365126965,1749481839288,-490.0,0.00019178,2]
[365126967,1749481839297,-488.33123306,0.00019178,2]
[365126969,1749481839307,-915.5,0.00019178,2]
[365126971,1749481839316,-490.0,0.00019178,2]
[365126973,1749481839325,-463.15126092,0.00019178,2]
[365126975,1749481839335,-490.0,0.00019178,2]
[365126977,1749481839346,-490.0,0.00019178,2]
[365126979,1749481839357,-490.0,0.00019178,2]
[365126981,1749481839367,-485.70841072,0.00019178,2]
[365126983,1749481839376,-460.0,0.00019178,2]
[365126985,1749481839387,-618.55,0.00019178,2]
[365126987,1749481839397,-490.0,0.00019178,2]
[365126989,1749481839407,-278.44069481,0.00019178,2]
[365126991,1749481839416,-3207.53,0.00019178,2]
[365126993,1749481839425,-490.0,0.00019178,2]
[365126995,1749481839435,-490.0,0.00019178,2]
[365126997,1749481839445,-689.86,0.00019178,2]
[365126999,1749481839454,-490.0,0.00019178,2]
[365127001,1749481839464,-460.0,0.00019178,2]
[365127003,1749481839474,-8638.35,0.00019178,2]
[365127005,1749481839484,-420.0,0.00019178,2]
[365127040,1749481839796,-490.0,0.00019178,2]
[365127042,1749481839807,-490.0,0.00019178,2]
[365127044,1749481839816,-490.0,0.00019178,2]
[365127046,1749481839826,-490.0,0.00019178,2]
[365127048,1749481839835,-490.0,0.00019178,2]
[365127050,1749481839845,-490.0,0.00019178,2]
[365127052,1749481839856,-1396.7,0.00019178,2]
[365127054,1749481839865,-2639.35,0.00019178,2]
[365127056,1749481839874,-982.98,0.00019178,2]
[365127058,1749481839883,-490.0,0.00019178,2]
[365127060,1749481839893,-460.0,0.00019178,2]
[365127062,1749481839903,-490.0,0.00019178,2]
[365127064,1749481839912,-510.35,0.00019178,2]
[365127066,1749481839921,-490.0,0.00019178,2]
[365127068,1749481839930,-407.42693088,0.00019178,2]
[365127070,1749481839940,-490.0,0.00019178,2]
[365127072,1749481839949,-460.0,0.00019178,2]
[365127074,1749481839959,-638.51,0.00019178,2]
[365127076,1749481839968,-490.0,0.00019178,2]
[365127078,1749481839978,-490.0,0.00019178,2]
[365127080,1749481839987,-490.0,0.00019178,2]
[365127082,1749481839996,-1258.45,0.00019178,2]
[365127084,1749481840005,-903.15,0.00019178,2]
[365127086,1749481840014,-1092.88,0.00019178,2]
[365127088,1749481840024,-1627.57,0.00019178,2]
[365127090,1749481840033,-460.0,0.00019178,2]
[365127092,1749481840042,-490.0,0.00019178,2]